Workbook

Sheet Лист1
A1: Приложение № 2 к муниципальной программе Североуральского городского округа «Развитие жилищно-коммунального хозяйства и транспортного обслуживания населения, повышение энергетической эффективности и охрана окружающей среды в Североуральском городском округе» на 2014-2020 годы
A2: План мероприятий
A3: по выполнению муниципальной программы Североуральского городского округа
A4: «Развитие жилищно-коммунального хозяйства и транспортного обслуживания населения,
A5: повышение энергетической эффективности и охрана окружающей среды в Североуральском городском округе» на 2014-2020 годы
A7: № строки | B7: Наименование мероприятия/ Источники расходов на финансирование | C7: Объем расходов на выполнение мероприятия за счет всех источников ресурсного обеспечения, тыс. руб. | K7: Номер строки целевых показателей, на достижение которых направлены мероприятия
C8: Всего | D8: первый год | E8: второй год | F8: третий год | G8: четвертый год | H8: пятый год | I8: шестой год | J8: седьмой год
B9: ВСЕГО по муниципальной программе, в том числе: | C9: =C22+C74+C120+C141+C167+C203+C239+C257 -> 618467.25 | D9: =D22+D74+D120+D141+D167+D203+D239+D257 -> 143828.3 | E9: 86985.45 | F9: 56041.5 | G9: 82903 | H9: 82903 | I9: 82903 | J9: 82903
B10: местный бюджет | C10: =C24+C75+C121+C142+C170+C204+C240+C259 -> 573363.55 | D10: =D24+D75+D121+D142+D170+D204+D240+D259 -> 99126.6 | E10: =E24+E75+E121+E142+E170+E204+E240+E259 -> 86918.45 | F10: 55974.5 | G10: 82836 | H10: 82836 | I10: 82836 | J10: 82836
B11: областной бюджет | C11: =C76+C143+C168+C258+C25 -> 19430.4 | D11: =D76+D143+D168+D258+D39 -> 19028.4 | E11: =E76+E143+E168+E258 -> 67 | F11: 67 | G11: 67 | H11: 67 | I11: 67 | J11: 67
B12: федеральный бюджет | C12: =C77+C144+C169 -> 25673.3 | D12: =D77+D144+D169 -> 25673.3 | E12: 0 | F12: 0 | G12: 0 | H12: 0 | I12: 0 | J12: 0
B13: Капитальные вложения | C13: =C27+C79+C123+C146+C172+C206+C242+C261 -> 284613.75 | D13: 95089.9 | E13: 39950.35 | F13: 8425.5 | G13: 35287 | H13: 35287 | I13: 35287 | J13: 35287
B14: местный бюджет | C14: =D14+E14+F14+G14+H14+I14+J14 -> 240729.85 | D14: =D28+D80+D124+D147+D173+D207+D243+D262 -> 51206 | E14: 39950.35 | F14: 8425.5 | G14: 35287 | H14: 35287 | I14: 35287 | J14: 35287
B15: областной бюджет | C15: =C81+C148 -> 16700.6 | D15: =D81+D148+D29 -> 18210.6 | E15: =E81+E148 -> 0 | F15: 0 | G15: 0 | H15: 0 | I15: 0 | J15: 0
B16: федеральный бюджет | C16: =C82+C149 -> 25673.3 | D16: =D82+D149 -> 25673.3 | E16: 0 | F16: 0 | G16: 0 | H16: 0 | I16: 0 | J16: 0
B17: Прочие нужды | C17: =SUM(C18:C19) -> 333265.5 | D17: =SUM(D18:D19) -> 48150.4 | E17: =SUM(E18:E19) -> 47035.1 | F17: 47616 | G17: 47616 | H17: 47616 | I17: 47616 | J17: 47616
B18: местный бюджет | C18: =SUM(D18:J18) -> 332633.7 | D18: =D42+D99+D133+D165+D216+D252+D272+D184 -> 47920.6 | E18: 46968.1 | F18: 47549 | G18: 47549 | H18: 47549 | I18: 47549 | J18: 47549
B19: областной бюджет | C19: =SUM(D19:J19) -> 631.8 | D19: =D271 -> 229.8 | E19: =E271 -> 67 | F19: 67 | G19: 67 | H19: 67 | I19: 67 | J19: 67
B20: федеральный бюджет | C20: =C100 -> 588 | D20: 588 | E20: 0 | F20: 0 | G20: 0 | H20: 0 | I20: 0 | J20: 0
A21: Подпрограмма 1: Комплексное благоустройство территории Североуральского городского округа
B22: Всего по подпрограмме 1, | C22: =SUM(C24+C25) -> 179969.7 | D22: =SUM(D24+D25) -> 23721 | E22: =SUM(E24) -> 22806.2 | F22: 26688.5 | G22: 26688.5 | H22: 26688.5 | I22: 26688.5 | J22: 26688.5
B23: в том числе:
B24: местный бюджет | C24: =SUM(D24:J24) -> 178459.7 | D24: =SUM(D28+D42) -> 22211 | E24: =SUM(E28+E42) -> 22806.2 | F24: 26688.5 | G24: 26688.5 | H24: 26688.5 | I24: 26688.5 | J24: 26688.5
B25: областной бюджет | C25: =D25+E25+F25+G25+H25+I25+J25 -> 1510 | D25: 1510
A26: 1. Капитальные вложения
B27: Всего по направлению «Капитальные вложения» всего, в том числе | C27: =SUM(D27:J27) -> 37957.7 | D27: =SUM(D28+D29) -> 3710 | E27: =SUM(E28) -> 2120.2 | F27: 6425.5 | G27: 6425.5 | H27: 6425.5 | I27: 6425.5 | J27: 6425.5
B28: местный бюджет | C28: =SUM(D28:J28) -> 36447.7 | D28: =SUM(D38) -> 2200 | E28: =SUM(E38) -> 2120.2 | F28: 6425.5 | G28: 6425.5 | H28: 6425.5 | I28: 6425.5 | J28: 6425.5
C29: =D29+E29+F29+G29+H29+I29+J29 -> 1510 | D29: 1510
A30: 1.1. Бюджетные инвестиции в объекты капитального строительства
B31: Бюджетные инвестиции в объекты капитального строительства всего, в том числе | C31: 0 | D31: 0 | E31: 0 | F31: 0 | G31: 0 | H31: 0 | I31: 0 | J31: 0
B32: местный бюджет | C32: 0 | D32: 0 | E32: 0 | F32: 0 | G32: 0 | H32: 0 | I32: 0 | J32: 0
A33: 1.2. Иные капитальные вложения
B34: Всего | C34: =SUM(D34:J34) -> 36447.7 | D34: =SUM(D35) -> 2200 | E34: =SUM(E35) -> 2120.2 | F34: 6425.5 | G34: 6425.5 | H34: 6425.5 | I34: 6425.5 | J34: 6425.5
B35: местный бюджет | C35: =SUM(D35:J35) -> 36447.7 | D35: =SUM(D38) -> 2200 | E35: =SUM(E38) -> 2120.2 | F35: 6425.5 | G35: 6425.5 | H35: 6425.5 | I35: 6425.5 | J35: 6425.5
A36: Мероприятие 1 Благоустройство дворовых территорий Североуральского городского округа
B37: Всего, из них | C37: =SUM(D37:J37) -> 37957.7 | D37: =D38+D39 -> 3710 | E37: =SUM(E38) -> 2120.2 | F37: 6425.5 | G37: 6425.5 | H37: 6425.5 | I37: 6425.5 | J37: 6425.5 | K37: 4
B38: местный бюджет | C38: =SUM(D38:J38) -> 36447.7 | D38: 2200 | E38: 2120.2 | F38: 6425.5 | G38: =SUM(F38) -> 6425.5 | H38: =SUM(G38) -> 6425.5 | I38: =SUM(H38) -> 6425.5 | J38: =SUM(I38) -> 6425.5
B39: областной бюджет | C39: =D39+E39+F39+G39+H39+I39+J39 -> 1510 | D39: 1510 | E39: 0 | F39: 0 | G39: 0 | H39: 0 | I39: 0 | J39: 0
A40: 3. Прочие нужды
B41: Всего по направлению «Прочие нужды», всего, в том числе: | C41: =SUM(D41:J41) -> 142012 | D41: =SUM(D42) -> 20011 | E41: =SUM(E42) -> 20686 | F41: 20263 | G41: 20263 | H41: 20263 | I41: 20263 | J41: 20263
B42: местный бюджет | C42: =SUM(D42:J42) -> 142012 | D42: =SUM(D45+D48+D51+D54) -> 20011 | E42: 20686 | F42: 20263 | G42: 20263 | H42: 20263 | I42: 20263 | J42: 20263
A43: Мероприятие 2 - Уличное освещение
B44: Всего, из них | C44: =SUM(D44:J44) -> 90499 | D44: =SUM(D45) -> 11900 | E44: 13000 | F44: 13119.8 | G44: 13119.8 | H44: 13119.8 | I44: 13119.8 | J44: 13119.8 | K44: 7
B45: местный бюджет | C45: =SUM(D45:J45) -> 90499 | D45: 11900 | E45: 13000 | F45: 13119.8 | G45: =SUM(F45) -> 13119.8 | H45: =SUM(G45) -> 13119.8 | I45: =SUM(H45) -> 13119.8 | J45: =SUM(I45) -> 13119.8
A46: Мероприятие 3 - Озеленение (цветники, валка сухих деревьев)
B47: Всего, из них | C47: =SUM(D47:J47) -> 15548.6 | D47: =SUM(D48) -> 2696.2 | E47: 2056.4 | F47: 2159.2 | G47: 2159.2 | H47: 2159.2 | I47: 2159.2 | J47: 2159.2 | K47: 9
B48: местный бюджет | C48: =SUM(D48:J48) -> 15548.6 | D48: 2696.2 | E48: 2056.4 | F48: 2159.2 | G48: =SUM(F48) -> 2159.2 | H48: =SUM(G48) -> 2159.2 | I48: =SUM(H48) -> 2159.2 | J48: =SUM(I48) -> 2159.2
A49: Мероприятие 4 - Организация и содержание мест захоронения
B50: Всего, из них | C50: =SUM(D50:J50) -> 15587.3 | D50: =SUM(D51) -> 1995 | E50: 2594.8 | F50: 2199.5 | G50: 2199.5 | H50: 2199.5 | I50: 2199.5 | J50: 2199.5 | K50: 14
B51: местный бюджет | C51: =SUM(D51:J51) -> 15587.3 | D51: 1995 | E51: 2594.8 | F51: 2199.5 | G51: =SUM(F51) -> 2199.5 | H51: =SUM(G51) -> 2199.5 | I51: =SUM(H51) -> 2199.5 | J51: =SUM(I51) -> 2199.5
A52: Мероприятие 5 - Прочие мероприятия по благоустройству
B53: Всего, в том числе: | C53: =SUM(D53:J53) -> 20377.1 | D53: =SUM(D54) -> 3419.8 | E53: 3034.8 | F53: =SUM(F54) -> 2784.5 | G53: 2784.5 | H53: 2784.5 | I53: 2784.5 | J53: 2784.5 | K53: 5,11,12,13,15
B54: местный бюджет | C54: =SUM(D54:J54) -> 20377.1 | D54: =SUM(D57+D60+D63+D66+D69+D72) -> 3419.8 | E54: 3034.8 | F54: 2784.5 | G54: =SUM(G57+G60+G63+G66+G69+G72) -> 2784.5 | H54: 2784.5 | I54: 2784.5 | J54: 2784.5
A55: - Содержание памятников
B56: Всего: | C56: =SUM(C57) -> 1522.5 | D56: 200 | E56: 220 | F56: 220.5 | G56: 220.5 | H56: 220.5 | I56: 220.5 | J56: 220.5 | K56: 15
B57: местный бюджет | C57: =SUM(D57:J57) -> 1522.5 | D57: 200 | E57: 220 | F57: 220.5 | G57: 220.5 | H57: =SUM(G57) -> 220.5 | I57: =SUM(H57) -> 220.5 | J57: =SUM(I57) -> 220.5
A58: - Проведение комплекса профилактических работ по уходу за объектами благоустройства
B59: Всего: | C59: =SUM(C60) -> 871.3 | D59: =SUM(D60) -> 674.3 | E59: =SUM(E60) -> 31.5 | F59: 33.1 | G59: 33.1 | H59: 33.1 | I59: 33.1 | J59: 33.1 | K59: 5
B60: местный бюджет | C60: =SUM(D60:J60) -> 871.3 | D60: 674.3 | E60: 31.5 | F60: 33.1 | G60: 33.1 | H60: =SUM(G60) -> 33.1 | I60: =SUM(H60) -> 33.1 | J60: =SUM(I60) -> 33.1
A61: - Регулирование численности безнадзорных животных
B62: Всего: | C62: =SUM(C63) -> 3781.5 | D62: =SUM(D63) -> 500 | E62: =SUM(E63) -> 525 | F62: 551.3 | G62: 551.3 | H62: 551.3 | I62: 551.3 | J62: 551.3 | K62: 11
B63: местный бюджет | C63: =SUM(D63:J63) -> 3781.5 | D63: 500 | E63: 525 | F63: 551.3 | G63: 551.3 | H63: =SUM(G63) -> 551.3 | I63: =SUM(H63) -> 551.3 | J63: =SUM(I63) -> 551.3
A64: - Содержание биоямы (скотомогильник)
B65: Всего: | C65: =SUM(C66) -> 589.9 | D65: =SUM(D66) -> 130.4 | E65: =SUM(E66) -> 73.5 | F65: 77.2 | G65: 77.2 | H65: 77.2 | I65: 77.2 | J65: 77.2 | K65: 13
B66: местный бюджет | C66: =SUM(D66:J66) -> 589.9 | D66: 130.4 | E66: 73.5 | F66: 77.2 | G66: 77.2 | H66: =SUM(G66) -> 77.2 | I66: =SUM(H66) -> 77.2 | J66: =SUM(I66) -> 77.2
A67: - Обустройство новогодних городков
B68: Всего: | C68: =SUM(C69) -> 13111.8 | D68: =SUM(D69) -> 1685.5 | E68: =SUM(E69) -> 2134.8 | F68: 1858.3 | G68: 1858.3 | H68: 1858.3 | I68: 1858.3 | J68: 1858.3 | K68: 5
B69: местный бюджет | C69: =SUM(D69:J69) -> 13111.8 | D69: 1685.5 | E69: 2134.8 | F69: 1858.3 | G69: 1858.3 | H69: =SUM(G69) -> 1858.3 | I69: =SUM(H69) -> 1858.3 | J69: =SUM(I69) -> 1858.3
A70: - Акарицидная обработка общественных мест
B71: Всего: | C71: =SUM(C72) -> 500.1 | D71: =SUM(D72) -> 229.6 | E71: =SUM(E72) -> 50 | F71: 44.1 | G71: 44.1 | H71: 44.1 | I71: 44.1 | J71: 44.1 | K71: 12
B72: местный бюджет | C72: =SUM(D72:J72) -> 500.1 | D72: 229.6 | E72: 50 | F72: 44.1 | G72: 44.1 | H72: =SUM(G72) -> 44.1 | I72: =SUM(H72) -> 44.1 | J72: =SUM(I72) -> 44.1
A73: Подпрограмма 2: Муниципальная программа по энергосбережению и повышению энергетической эффективности объектов Североуральского городского округа
B74: Всего по подпрограмме 2, в том числе | C74: =SUM(D74:J74) -> 36693.9 | D74: =SUM(D75:D77) -> 7547.4 | E74: =SUM(E75:E77) -> 6467.5 | F74: 4535.8 | G74: 4535.8 | H74: 4535.8 | I74: 4535.8 | J74: 4535.8
B75: местный бюджет | C75: =SUM(D75:J75) -> 33349.5 | D75: =SUM(D80+D99) -> 4203 | E75: =SUM(E80+E99) -> 6467.5 | F75: =F80+F99 -> 4535.8 | G75: =SUM(G80+G99) -> 4535.8 | H75: =SUM(H80+H99) -> 4535.8 | I75: =SUM(I80+I99) -> 4535.8 | J75: =SUM(J80+J99) -> 4535.8
B76: областной бюджет | C76: =SUM(D76:J76) -> 3344.4 | D76: 3344.4 | E76: =SUM(E81) -> 0 | F76: 0 | G76: 0 | H76: 0 | I76: 0 | J76: 0
B77: федеральный бюджет | C77: =SUM(D77:J77) -> 0 | D77: 0 | E77: =SUM(E82+E100) -> 0 | F77: 0 | G77: 0 | H77: 0 | I77: 0 | J77: 0
A78: 1. Капитальные вложения
B79: Всего по направлению «Капитальные вложения», всего, в том числе | C79: =C84+C88 -> 17187.4 | D79: =SUM(D80:D82) -> 3187.4 | E79: =SUM(E80:E82) -> 4000 | F79: 2000 | G79: 2000 | H79: 2000 | I79: 2000 | J79: 2000
B80: местный бюджет | C80: =SUM(D80:J80) -> 14431 | D80: 431 | E80: =SUM(E89) -> 4000 | F80: 2000 | G80: 2000 | H80: 2000 | I80: 2000 | J80: 2000
B81: областной бюджет | C81: =C86+C90 -> 2756.4 | D81: 2756.4 | E81: =SUM(E90) -> 0 | F81: 0 | G81: 0 | H81: 0 | I81: 0 | J81: 0
B82: федеральный бюджет | C82: =SUM(D82:J82) -> 0 | D82: =SUM(D91) -> 0 | E82: =SUM(E91) -> 0 | F82: 0 | G82: 0 | H82: 0 | I82: 0 | J82: 0
A83: 1.1. Бюджетные инвестиции в объекты капитального строительства
B84: Бюджетные инвестиции в объекты капитального строительства всего, в том числе | C84: =D84+E84+F84+G84+H84+I84+J84 -> 3187.4 | D84: =D85+D86 -> 3187.4 | E84: 0 | F84: 0 | G84: 0 | H84: 0 | I84: 0 | J84: 0
B85: местный бюджет | C85: =D85+E85+F85+G85+H85+I85+J85 -> 431 | D85: 431 | E85: 0 | F85: 0 | G85: 0 | H85: 0 | I85: 0 | J85: 0
B86: областной бюджет | C86: =D86+E86+F86+G86+H86+I86+J86 -> 2756.4 | D86: 2756.4
A87: 1.2. Иные капитальные вложения
B88: Всего, в том числе | C88: =SUM(C89:C91) -> 14000 | D88: =SUM(D89:D91) -> 0 | E88: =SUM(E89:E91) -> 4000 | F88: 2000 | G88: 2000 | H88: 2000 | I88: 2000 | J88: 2000
B89: местный бюджет | C89: =SUM(D89:J89) -> 14000 | D89: 0 | E89: =SUM(E94) -> 4000 | F89: 2000 | G89: 2000 | H89: 2000 | I89: 2000 | J89: 2000
B90: областной бюджет | C90: =SUM(D90:J90) -> 0 | D90: 0 | E90: =SUM(E95) -> 0 | F90: 0 | G90: 0 | H90: 0 | I90: 0 | J90: 0
B91: федеральный бюджет | C91: =SUM(D91:J91) -> 0 | D91: =SUM(D96) -> 0 | E91: =SUM(E96) -> 0 | F91: 0 | G91: 0 | H91: 0 | I91: 0 | J91: 0
A92: Мероприятие 6- Реконструкция, модернизация водопроводных сетей, сетей системы водоотведения с заменой (без замены) оборудования с более высоким КПД, установка регулируемого привода, тепловых сетей с использованием энергетически эффективных технологий по тепловой изоляции, восстановление тепловой изоляции с применением эффективных технологий
B93: Всего, из них | C93: =SUM(C94:C96) -> 17187.4 | D93: =SUM(D94:D96) -> 3187.4 | E93: =SUM(E94:E96) -> 4000 | F93: 2000 | G93: 2000 | H93: 2000 | I93: 2000 | J93: 2000 | K93: 27
B94: местный бюджет | C94: =SUM(D94:J94) -> 14431 | D94: 431 | E94: 4000 | F94: 2000 | G94: =SUM(F94) -> 2000 | H94: 2000 | I94: 2000 | J94: 2000
B95: областной бюджет | C95: =SUM(D95:J95) -> 2756.4 | D95: 2756.4 | E95: 0 | F95: =SUM(E95*1.05) -> 0 | G95: 0 | H95: 0 | I95: 0 | J95: 0
B96: федеральный бюджет | C96: =SUM(D96:J96) -> 0 | D96: 0 | E96: 0 | F96: 0 | G96: =SUM(F96) -> 0 | H96: =SUM(G96) -> 0 | I96: =SUM(H96) -> 0 | J96: =SUM(I96) -> 0
A97: 3. Прочие нужды
B98: Всего по направлению «Прочие нужды», всего, в том числе: | C98: =SUM(D98:J98) -> 19506.5 | D98: =SUM(D99:D100) -> 4360 | E98: =SUM(E99:E100) -> 2467.5 | F98: 2535.8 | G98: 2535.8 | H98: 2535.8 | I98: 2535.8 | J98: 2535.8
B99: местный бюджет | C99: =SUM(D99:J99) -> 18918.5 | D99: =SUM(D103+D111+D115+D118) -> 3772 | E99: 2467.5 | F99: 2535.8 | G99: 2535.8 | H99: 2535.8 | I99: 2535.8 | J99: 2535.8
B100: областной бюджет | C100: =SUM(D100:J100) -> 588 | D100: 588 | E100: =SUM(E104+E112) -> 0 | F100: 0 | G100: 0 | H100: 0 | I100: 0 | J100: 0
A101: Мероприятие 7 - Оснащение зданий (строений, сооружений), находящихся в муниципальной собственности, многоквартирных жилых домов, жилых помещений, квартир приборами учета используемых энергетических ресурсов, в том числе разработка проектно-сметной документации
B102: всего, в том числе: | C102: =SUM(D102:J102) -> 3794 | D102: =SUM(D103:D104) -> 1200 | E102: 415 | F102: 435.8 | G102: 435.8 | H102: 435.8 | I102: 435.8 | J102: 435.8 | K102: 19,21,22,23,24
B103: местный бюджет | C103: =SUM(D103:J103) -> 3794 | D103: =SUM(D108) -> 1200 | E103: =SUM(E108) -> 415 | F103: 435.8 | G103: 435.8 | H103: 435.8 | I103: 435.8 | J103: 435.8
B104: областной бюджет | C104: =SUM(D104:J104) -> 0 | D104: =SUM(D105) -> 0 | E104: =SUM(E105) -> 0 | F104: 0 | G104: 0 | H104: 0 | I104: 0 | J104: 0
B105: федеральный бюджет | C105: =SUM(D105:J105) -> 0 | D105: 0 | E105: 0 | F105: 0 | G105: =SUM(F105) -> 0 | H105: =SUM(G105) -> 0 | I105: =SUM(H105) -> 0 | J105: =SUM(I105) -> 0
A106: - Оснащение жилых домов (субсидии)
B107: Всего: | C107: =SUM(C108) -> 3794 | D107: 1200 | E107: 415 | F107: 435.8 | G107: 435.8 | H107: 435.8 | I107: 435.8 | J107: 435.8
B108: местный бюджет | C108: =SUM(D108:J108) -> 3794 | D108: 1200 | E108: 415 | F108: 435.8 | G108: =SUM(F108) -> 435.8 | H108: =SUM(G108) -> 435.8 | I108: =SUM(H108) -> 435.8 | J108: =SUM(I108) -> 435.8
A109: Мероприятие 9 - Закупка и установка осветительного оборудования с заменой неэффективного на энергосберегающее, в том числе замена ламп накаливания на энергосберегающие, модернизация сетей уличного освещения, проектно-сметные работы, экспертиза проектно-сметной документации
B110: всего, из них: | C110: =D110+E110+F110+G110+H110+I110+J110 -> 15230 | D110: =SUM(D111:D112) -> 2730 | E110: =SUM(E111:E112) -> 2000 | F110: 2100 | G110: 2100 | H110: 2100 | I110: 2100 | J110: 2100 | K110: 26
B111: местный бюджет | C111: =D111+E111+2100*5 -> 14642 | D111: 2142 | E111: 2000 | F111: 2100 | G111: =SUM(F111) -> 2100 | H111: 2100 | I111: 2100 | J111: 2100
B112: областной бюджет | C112: =D112+E112 -> 588 | D112: 588 | E112: 0 | F112: 0 | G112: 0 | H112: 0 | I112: 0 | J112: 0
A113: Мероприятие 10 - Разработка схемы водоснабжения Североуральского городского округа
B114: всего, из них: | C114: =SUM(D114:J114) -> 380 | D114: =SUM(D115) -> 380 | E114: =SUM(E115) -> 0 | F114: 0 | G114: 0 | H114: 0 | I114: 0 | J114: 0 | K114: 28
B115: местный бюджет | C115: =SUM(D115:J115) -> 380 | D115: 380 | E115: 0 | F115: 0 | G115: =SUM(F115) -> 0 | H115: =SUM(G115) -> 0 | I115: =SUM(H115) -> 0 | J115: =SUM(I115) -> 0
A116: Мероприятие 11 - Прочие мероприятия (оформление актов выбора трассы под строительство водопроводов, сетей уличного освещения, газопроводов и т.п.)
B117: всего, из них: | C117: =SUM(D117:J117) -> 102.5 | D117: =SUM(D118) -> 50 | E117: =SUM(E118) -> 52.5 | F117: 0 | G117: 0 | H117: 0 | I117: 0 | J117: 0 | K117: 29
B118: местный бюджет | C118: =SUM(D118:J118) -> 102.5 | D118: 50 | E118: 52.5 | F118: 0 | G118: =SUM(F118) -> 0 | H118: =SUM(G118) -> 0 | I118: =SUM(H118) -> 0 | J118: =SUM(I118) -> 0
A119: Подпрограмма 3: Развитие лесного хозяйства на территории Североуральского городского округа
B120: Всего по подпрограмме 1, всего, в том числе | C120: =SUM(C121:C121) -> 2707 | D120: =SUM(D121) -> 1513 | E120: =SUM(E121) -> 191 | F120: 200.6 | G120: 200.6 | H120: 200.6 | I120: 200.6 | J120: 200.6
B121: местный бюджет | C121: =SUM(D121:J121) -> 2707 | D121: =SUM(D133) -> 1513 | E121: =SUM(E133) -> 191 | F121: 200.6 | G121: 200.6 | H121: 200.6 | I121: 200.6 | J121: 200.6
A122: 1. Капитальные вложения
B123: Всего по направлению «Капитальные вложения», всего, в том числе | C123: 0 | D123: 0 | E123: 0 | F123: 0 | G123: 0 | H123: 0 | I123: 0 | J123: 0
B124: местный бюджет | C124: 0 | D124: 0 | E124: 0 | F124: 0 | G124: 0 | H124: 0 | I124: 0 | J124: 0
A125: 1.1. Бюджетные инвестиции в объекты капитального строительства
B126: Бюджетные инвестиции в объекты капитального строительства всего, в том числе: | C126: =SUM(C127) -> 0 | D126: =SUM(D127) -> 0 | E126: 0 | F126: 0 | G126: 0 | H126: 0 | I126: 0 | J126: 0
B127: местный бюджет | C127: 0 | D127: 0 | E127: 0 | F127: 0 | G127: 0 | H127: 0 | I127: 0 | J127: 0
A128: 1.2. Иные капитальные вложения
B129: Всего, в том числе: | C129: =SUM(A131) -> 0 | D129: 0 | E129: 0 | F129: 0 | G129: 0 | H129: 0 | I129: 0 | J129: 0
B130: местный бюджет | C130: 0 | D130: 0 | E130: 0 | F130: 0 | G130: 0 | H130: 0 | I130: 0 | J130: 0
A131: 3. Прочие нужды
B132: Всего, из них | C132: =SUM(C133:C133) -> 2707 | D132: 1513 | E132: 191 | F132: 200.6 | G132: 200.6 | H132: 200.6 | I132: 200.6 | J132: 200.6
B133: местный бюджет | C133: =SUM(D133:J133) -> 2707 | D133: =SUM(D136) -> 1513 | E133: =SUM(E136) -> 191 | F133: 200.6 | G133: 200.6 | H133: 200.6 | I133: 200.6 | J133: 200.6
A134: Мероприятие 12 - Развитие лесного хозяйства на территории Североуральского городского округа
B135: Всего, в том числе: | C135: =SUM(D135:J135) -> 2707 | D135: =SUM(D136) -> 1513 | E135: =SUM(E136) -> 191 | F135: 200.6 | G135: 200.6 | H135: 200.6 | I135: 200.6 | J135: 200.6 | K135: 33
B136: местный бюджет | C136: =SUM(D136:J136) -> 2707 | D136: =SUM(D139) -> 1513 | E136: =SUM(E139) -> 191 | F136: 200.6 | G136: 200.6 | H136: 200.6 | I136: 200.6 | J136: 200.6
A137: - Межевание городских лесов, постановка на кадастровый учет
B138: Всего: | C138: =SUM(C139) -> 2707 | D138: =SUM(D139) -> 1513 | E138: =SUM(E139) -> 191 | F138: 200.6 | G138: 200.6 | H138: 200.6 | I138: 200.6 | J138: 200.6 | K138: 33
B139: местный бюджет | C139: =SUM(D139:J139) -> 2707 | D139: 1513 | E139: 191 | F139: 200.6 | G139: =SUM(F139) -> 200.6 | H139: =SUM(G139) -> 200.6 | I139: =SUM(H139) -> 200.6 | J139: =SUM(I139) -> 200.6
A140: Подпрограмма 4 : Переселение граждан на территории Североуральского городского округа из аварийного жилищного фонда с учетом необходимости развития малоэтажного жилищного строительства
B141: Всего по подпрограмме 4, всего, в том числе | C141: =SUM(C142:C144) -> 229468.65 | D141: =SUM(D142:D144) -> 88192.5 | E141: 33830.15 | F141: 0 | G141: 26861.5 | H141: 26861.5 | I141: 26861.5 | J141: 26861.5
B142: местный бюджет | C142: =SUM(D142:J142) -> 189851.15 | D142: =SUM(D147) -> 48575 | E142: =SUM(E147) -> 33830.15 | F142: 0 | G142: 26861.5 | H142: 26861.5 | I142: 26861.5 | J142: 26861.5
B143: областной бюджет | C143: =SUM(D143:J143) -> 13944.2 | D143: =SUM(D148) -> 13944.2 | E143: =SUM(E148) -> 0 | F143: 0 | G143: 0 | H143: 0 | I143: 0 | J143: 0
B144: федеральный бюджет | C144: =SUM(D144:J144) -> 25673.3 | D144: =SUM(D149) -> 25673.3 | E144: =SUM(E149) -> 0 | F144: 0 | G144: 0 | H144: 0 | I144: 0 | J144: 0
A145: 1. Капитальные вложения
B146: Всего по направлению «Капитальные вложения», всего, в том числе | C146: =SUM(C147:C149) -> 229468.65 | D146: =SUM(D147:D149) -> 88192.5 | E146: =SUM(E147:E149) -> 33830.15 | F146: 0 | G146: 26861.5 | H146: 26861.5 | I146: 26861.5 | J146: 26861.5
B147: местный бюджет | C147: =SUM(D147:J147) -> 189851.15 | D147: =SUM(D160) -> 48575 | E147: =SUM(E160) -> 33830.15 | F147: 0 | G147: 26861.5 | H147: 26861.5 | I147: 26861.5 | J147: 26861.5
B148: областной бюджет | C148: =SUM(D148:J148) -> 13944.2 | D148: =SUM(D161) -> 13944.2 | E148: =SUM(E161) -> 0 | F148: 0 | G148: 0 | H148: 0 | I148: 0 | J148: 0
B149: федеральный бюджет | C149: =SUM(D149:J149) -> 25673.3 | D149: =SUM(D162) -> 25673.3 | E149: =SUM(E162) -> 0 | F149: 0 | G149: 0 | H149: 0 | I149: 0 | J149: 0
A150: 1.1. Бюджетные инвестиции в объекты капитального строительства
B151: Бюджетные инвестиции в объекты капитального строительства всего, в том числе: | C151: =SUM(C152) -> 0 | D151: =SUM(D152) -> 0 | E151: 0 | F151: 0 | G151: 0 | H151: 0 | I151: 0 | J151: 0
B152: местный бюджет | C152: 0 | D152: 0 | E152: 0 | F152: 0 | G152: 0 | H152: 0 | I152: 0 | J152: 0
A153: 1.2. Иные капитальные вложения
B154: Всего, в том числе: | C154: =SUM(D154:J154) -> 229468.65 | D154: =SUM(D155:D157) -> 88192.5 | E154: =SUM(E155:E157) -> 33830.15 | F154: 0 | G154: 26861.5 | H154: 26861.5 | I154: 26861.5 | J154: 26861.5
B155: местный бюджет | C155: =SUM(D155:J155) -> 189851.15 | D155: =SUM(D160) -> 48575 | E155: =SUM(E160) -> 33830.15 | F155: 0 | G155: 26861.5 | H155: 26861.5 | I155: 26861.5 | J155: 26861.5
B156: областной бюджет | C156: =SUM(D156:J156) -> 13944.2 | D156: =SUM(D161) -> 13944.2 | E156: =SUM(E161) -> 0 | F156: 0 | G156: 0 | H156: 0 | I156: 0 | J156: 0
B157: федеральный бюджет | C157: =SUM(D157:J157) -> 25673.3 | D157: =SUM(D162) -> 25673.3 | E157: =SUM(E162) -> 0 | F157: 0 | G157: 0 | H157: 0 | I157: 0 | J157: 0
A158: Мероприятие 13 - Переселение граждан на территории Североуральского городского округа из аварийного жилищного фонда с учетом необходимости развития малоэтажного жилищного строительства
B159: Всего по направлению «Капитальные вложения», всего, в том числе | C159: =SUM(D159:J159) -> 229468.65 | D159: =SUM(D160:D162) -> 88192.5 | E159: =SUM(E160:E162) -> 33830.15 | F159: 0 | G159: 26861.5 | H159: 26861.5 | I159: 26861.5 | J159: 26861.5 | K159: 37, 39, 40
B160: местный бюджет | C160: =SUM(D160:J160) -> 189851.15 | D160: 48575 | E160: 33830.15 | F160: 0 | G160: 26861.5 | H160: 26861.5 | I160: 26861.5 | J160: 26861.5
B161: областной бюджет | C161: =SUM(D161:J161) -> 13944.2 | D161: 13944.2 | E161: 0 | F161: 0 | G161: 0 | H161: 0 | I161: 0 | J161: 0
B162: федеральный бюджет | C162: =SUM(D162:J162) -> 25673.3 | D162: 25673.3 | E162: 0 | F162: 0 | G162: 0 | H162: 0 | I162: 0 | J162: 0
A163: 3 Прочие нужды
B164: Всего, в том числе: | C164: 0 | D164: 0 | E164: 0 | F164: 0 | G164: 0 | H164: 0 | I164: 0 | J164: 0
B165: местный бюджет | C165: 0 | D165: 0 | E165: 0 | F165: 0 | G165: 0 | H165: 0 | I165: 0 | J165: 0
A166: Подпрограмма 5 : Содержание и капитальный ремонт общего имущества муниципального жилищного фонда на территории Североуральского городского округа
B167: Всего по подпрограмме 5, в том числе | C167: =C168+C169+C170 -> 64356.1 | D167: 7972 | E167: 9021.6 | F167: 9472.5 | G167: 9472.5 | H167: 9472.5 | I167: 9472.5 | J167: 9472.5
B168: областной бюджет | C168: =SUM(D168:J168) -> 0 | D168: =SUM(D182) -> 0 | E168: =SUM(E182) -> 0 | F168: 0 | G168: 0 | H168: 0 | I168: 0 | J168: 0
B169: федеральный бюджет | C169: =SUM(D169:J169) -> 0 | D169: =SUM(D183) -> 0 | E169: =SUM(E183) -> 0 | F169: 0 | G169: 0 | H169: 0 | I169: 0 | J169: 0
B170: местный бюджет | C170: =SUM(D170:J170) -> 64356.1 | D170: =SUM(D184) -> 7972 | E170: =SUM(E184) -> 9021.6 | F170: 9472.5 | G170: 9472.5 | H170: 9472.5 | I170: 9472.5 | J170: 9472.5
A171: 1. Капитальные вложения
B172: Всего по направлению «Капитальные вложения», всего, в том числе | C172: =SUM(C173) -> 0 | D172: =SUM(D173) -> 0 | E172: 0 | F172: 0 | G172: 0 | H172: 0 | I172: 0 | J172: 0
B173: местный бюджет | C173: 0 | D173: 0 | E173: 0 | F173: 0 | G173: 0 | H173: 0 | I173: 0 | J173: 0
A174: 1.1. Бюджетные инвестиции в объекты капитального строительства
B175: Бюджетные инвестиции в объекты капитального строительства всего, в том числе: | C175: =SUM(C176) -> 0 | D175: =SUM(D176) -> 0 | E175: 0 | F175: 0 | G175: 0 | H175: 0 | I175: 0 | J175: 0
B176: местный бюджет | C176: =SUM(D176:J176) -> 0 | D176: 0 | E176: 0 | F176: 0 | G176: 0 | H176: 0 | I176: 0 | J176: 0
A177: 1.2. Иные капитальные вложения
B178: Всего, в том числе: | C178: 0 | D178: =SUM(C176) -> 0 | E178: 0 | F178: 0 | G178: 0 | H178: 0 | I178: 0 | J178: 0
B179: местный бюджет | C179: =SUM(D179:J179) -> 0 | D179: 0 | E179: 0 | F179: 0 | G179: 0 | H179: 0 | I179: 0 | J179: 0
A180: 3 Прочие нужды
B181: Всего, в том числе: | C181: =SUM(C182:C184) -> 64356.1 | D181: =SUM(D182:D184) -> 7972 | E181: =SUM(E182:E184) -> 9021.6 | F181: 9472.5 | G181: 9472.5 | H181: 9472.5 | I181: 9472.5 | J181: 9472.5
B182: областной бюджет | C182: =SUM(D182:J182) -> 0 | D182: =SUM(D200) -> 0 | E182: =SUM(E200) -> 0 | F182: 0 | G182: 0 | H182: 0 | I182: 0 | J182: 0
B183: федеральный бюджет | C183: =SUM(D183:J183) -> 0 | D183: =SUM(D201) -> 0 | E183: =SUM(E201) -> 0 | F183: 0 | G183: 0 | H183: 0 | I183: 0 | J183: 0
B184: местный бюджет | C184: =SUM(D184:J184) -> 64356.1 | D184: =D187+D190+D193+D196+D199 -> 7972 | E184: 9021.6 | F184: 9472.5 | G184: 9472.5 | H184: 9472.5 | I184: 9472.5 | J184: 9472.5
A185: Мероприятие 14 - Ремонт общего имущества и квартир, в которых проживают отдельные категории граждан муниципального жилищного фонда в целях приведения в состояние, отвечающее требованиям пожарной безопасности, санитарно-техническим и иным требованиям
B186: Всего, из них | C186: =SUM(C187) -> 7119.6 | D186: =SUM(D187) -> 422 | E186: =SUM(E187) -> 1081.6 | F186: 1123.2 | G186: 1123.2 | H186: 1123.2 | I186: 1123.2 | J186: 1123.2 | K186: 44
B187: местный бюджет | C187: =SUM(D187:J187) -> 7119.6 | D187: 422 | E187: 1081.6 | F187: 1123.2 | G187: =SUM(F187) -> 1123.2 | H187: =SUM(G187) -> 1123.2 | I187: =SUM(H187) -> 1123.2 | J187: =SUM(I187) -> 1123.2
A188: Мероприятие 15 - Компенсация выпадающих доходов организациям, предоставляющим населению жилищные услуги по тарифам, не обеспечивающим возмещение издержек, по содержанию лифтового хозяйства
B189: Всего, из них | C189: =SUM(D189:J189) -> 11344 | D189: =SUM(D190) -> 1500 | E189: =SUM(E190) -> 1575 | F189: 1653.8 | G189: 1653.8 | H189: 1653.8 | I189: 1653.8 | J189: 1653.8 | K189: 46
B190: местный бюджет | C190: =SUM(D190:J190) -> 11344 | D190: 1500 | E190: 1575 | F190: 1653.8 | G190: =SUM(F190) -> 1653.8 | H190: =SUM(G190) -> 1653.8 | I190: =SUM(H190) -> 1653.8 | J190: =SUM(I190) -> 1653.8
A191: Мероприятие 16 - Компенсация выпадающих доходов организациям, предоставляющим населению жилищные услуги по тарифам, не обеспечивающим возмещение издержек, по содержанию муниципального жилищного фонда поселка Покровск-Уральский
B192: Всего, из них | C192: =SUM(D192:J192) -> 7562.5 | D192: =SUM(D193) -> 1000 | E192: =SUM(E193) -> 1050 | F192: 1102.5 | G192: 1102.5 | H192: 1102.5 | I192: 1102.5 | J192: 1102.5 | K192: 46
B193: местный бюджет | C193: =SUM(D193:J193) -> 7562.5 | D193: 1000 | E193: 1050 | F193: 1102.5 | G193: =SUM(F193) -> 1102.5 | H193: =SUM(G193) -> 1102.5 | I193: =SUM(H193) -> 1102.5 | J193: =SUM(I193) -> 1102.5
A194: Мероприятие 17- Предоставление субсидий на удешевление стоимости услуг по содержанию и ремонту муниципального специализированного жилищного фонда (общежитий)
B195: Всего, из них | C195: =SUM(C196) -> 9830 | D195: =SUM(D196) -> 1300 | E195: =SUM(E196) -> 1365 | F195: 1433 | G195: 1433 | H195: 1433 | I195: 1433 | J195: 1433 | K195: 46
B196: местный бюджет | C196: =SUM(D196:J196) -> 9830 | D196: 1300 | E196: 1365 | F196: 1433 | G196: =SUM(F196) -> 1433 | H196: =SUM(G196) -> 1433 | I196: =SUM(H196) -> 1433 | J196: =SUM(I196) -> 1433
A197: Мероприятие 18- Проведение капитального ремонта общего имущества многоквартирных домов Североуральского городского округа
B198: Всего, из них | C198: =SUM(C199:C201) -> 28500 | D198: =SUM(D199:D201) -> 3750 | E198: =SUM(E199:E201) -> 3950 | F198: 4160 | G198: 4160 | H198: 4160 | I198: 4160 | J198: 4160 | K198: 45
B199: местный бюджет | C199: =SUM(D199:J199) -> 28500 | D199: 3750 | E199: 3950 | F199: 4160 | G199: 4160 | H199: 4160 | I199: 4160 | J199: 4160
B200: областной бюджет | C200: =SUM(D200:J200) -> 0 | D200: 0 | E200: 0 | F200: 0 | G200: =F200*1 -> 0 | H200: =G200*1 -> 0 | I200: =H200*1 -> 0 | J200: =I200*1 -> 0
B201: федеральный бюджет | C201: =SUM(D201:J201) -> 0 | D201: 0 | E201: 0 | F201: 0 | G201: 0 | H201: 0 | I201: 0 | J201: 0
... 86 more rows

Sheet Лист2

Sheet Лист3
